{"text_format":"1","workbook":"xlsx","n_sheets":5,"sheets":["Formato","Instrucciones","Datos","Hoja2","Hoja3"],"not_rendered":{"charts":0,"images":3,"macros":1,"external_links":0,"defined_names":0,"comments":0,"pivot_tables":0},"unopened":[],"bounds":{"document_bytes":16777216,"sheet_cells":100000,"rows_first":2000,"rows_last":500,"rows_between":2000,"halvings":0,"cell_chars":16384,"cell_head_chars":4096},"cells_cut":0,"cells_raw":0,"read":"whole","date_system":"1900"}

{"sheet":"Formato","index":0,"n_rows":22,"n_cols":4,"rows_kept":22,"cut":false,"hidden":false,"merged":[[21,2,21,4],[13,2,13,4],[14,2,14,4],[5,2,5,4],[6,2,6,4],[7,2,7,4],[8,2,8,4],[10,2,10,4],[20,2,20,4],[0,1,3,4],[20,5,20,7],[4,1,4,4],[12,2,12,4],[9,2,9,4],[18,1,18,4],[19,2,19,4]]}
[null,"                                            FORMATO: SOLICITUD CARGUE, AMPLIACIÓN O CAMBIO DE COMISIÓN\n                         O AUTORIZACIÓN DE DESPLAZAMIENTO\n                          PROCESO: GESTIÓN DE RECURSOS FÍSICOS\n                           Versión: 2.0  Fecha: 16/05/2025  Código: GRF-F-62"]
[]
[]
[]
[null,"FORMATO SOLICITUD CARGUE, AMPLIACIÓN O CAMBIO DE COMISIÓN O AUTORIZACIÓN DE DESPLAZAMIENTO"]
[null,"TIPO DE SOLICITUD","SOLICITUD CAMBIO"]
[null,"NOMBRE COMISIONADO O CONTRATISTA"]
[null,"CÉDULA COMISIONADO O CONTRATISTA"]
[null,"TIPO VINCULACIÓN","Funcionario"]
[null,"CONSECUTIVO ULISES INICIAL",{"$f":"IF(C6=\"SOLICITUD CARGUE MÓDULO NARANJA\",\"N/A\",\"\")","v":""}]
[null,"OBJETO"]
[null,"FECHA SALIDA",null,"FECHA REGRESO"]
[null,"RUTA(S), FECHA(S) Y RANGO(S) DE HORA DE VUELOS"]
[null,"JUSTIFICACIÓN"]
[null,{"$f":"+IF($C$6=Datos!$C$5,\"\",Datos!$E$5)","v":""}]
[null,{"$f":"+IF($C$6=Datos!$C$5,\"\",Datos!$E$6)","v":""},null,{"$f":"+IF($C$6=Datos!$C$5,\"\",Datos!$E$9)","v":""}]
[null,{"$f":"+IF($C$6=Datos!$C$5,\"\",Datos!$E$7)","v":""},null,{"$f":"+IF($C$6=Datos!$C$5,\"\",Datos!$E$10)","v":""}]
[null,{"$f":"+IF($C$6=Datos!$C$5,\"\",Datos!$E$8)","v":""},null,{"$f":"+IF($C$6=Datos!$C$5,\"\",Datos!$E$11)","v":""}]
[null,"DILIGENCIAR SOLO EN CASO DE SOLICITUD DE CAMBIO"]
[null,{"$f":"+IF(OR($C$6=Datos!$C$12,$C$6=Datos!$C$16),\"\",Datos!$E$16)","v":"NUMERO DE TIQUETE"}]
[null,{"$f":"+IF(OR($C$6=Datos!$C$12,$C$6=Datos!$C$16),\"\",Datos!$E$17)","v":"NUEVA RUTA(S), FECHA(S) Y RANGO(S) DE HORA DE VUELOS"}]
[null,{"$f":"+IF(OR($C$6=Datos!$C$12,$C$6=Datos!$C$16),\"\",Datos!$E$18)","v":"JUSTIFICACIÓN DEL CAMBIO"}]

{"sheet":"Instrucciones","index":1,"n_rows":22,"n_cols":2,"rows_kept":22,"cut":false,"hidden":false,"merged":[[17,0,17,1],[21,0,22,1]]}
["Campo del formato","Forma de selección o diligenciamiento"]
["TIPO DE SOLICITUD","Despliegue las opciones que se acojan a su solicitud y automaticamente se activarán los campos que debe diligenciar."]
["NOMBRE COMISIONADO O CONTRATISTA","Diligencie nombres y apellidos de quien realiza comisión o desplazamiento."]
["CÉDULA COMISIONADO CONTRATISTA","Diligencie cédula de quien realiza comisión o desplazamiento."]
["TIPO VINCULACIÓN","Despliegue las opciones y seleccione la que se ajusta al colaborador"]
["CONSECUTIVO ULISES INICIAL","Diligencie el número de la comisión o desplazamiento inicial radicado en la plataforma, el cual solo aplica para ampliación o cambio."]
["OBJETO","Diligencie de forma clara, precisa y completa, asegurando que todos los detalles relevantes estén incluidos para facilitar su ejecución y evaluación posterior."]
["FECHA SALIDA Y FECHA DE REGRESO","Se ubica en la celda de fecha, selecciona en el calendario que aparece en la parte derecha la fecha que requiere, arroja un letrero, le da click en OK y plasmará la fecha elegida, realice este proceso en los 2 campos de fecha."]
["RUTA(S), FECHA(S) Y RANGO(S) DE HORA DE VUELOS","Relacione de forma individual y ordenada la ruta, fecha, rango de hora que requiere, especificando si es a.m. o p.m., de cada uno de los vuelos que requiere para la ejecución de la comisión o desplazamiento."]
["JUSTIFICACIÓN","Explicación clara del motivo por el cual se requiere la comisión de servicios de forma extemporánea, por la cual debe cargarse por módulo naranja, ampliación o cambio. Debe indicar el propósito específico del viaje o desplazamiento y su ejecución imprescindible."]
[{"$f":"+IF($C$4=Datos!$C$5,\"\",Datos!$E$5)","v":"RUTA COMPLETA"},"Relacione uno a uno todos los trayectos que realizará en la comisión o desplazamiento, incluído dese Bogotá y el regreso."]
[{"$f":"+IF($C$4=Datos!$C$5,\"\",Datos!$E$6)","v":"REQUIERE VIATICOS"},"Indique SI o NO."]
[{"$f":"+IF($C$4=Datos!$C$5,\"\",Datos!$E$9)","v":"CDP VIATICOS"},"Relacione el CDP que se debe afectar para el pago de viáticos y asegurese antes que este cuenta con recursos para evitar devoluciones."]
[{"$f":"+IF($C$4=Datos!$C$5,\"\",Datos!$E$7)","v":"REQUIERE TIQUETES"},"Indique SI o NO."]
[{"$f":"+IF($C$4=Datos!$C$5,\"\",Datos!$E$10)","v":"CDP TIQUETES"},"Relacione el CDP que se debe afectar para el pago de tiquetes y asegurese antes que este cuenta con recursos para evitar devoluciones."]
[{"$f":"+IF($C$4=Datos!$C$5,\"\",Datos!$E$8)","v":"REQUIERE GASTOS DE VIAJE"},"Indique SI o NO."]
[{"$f":"+IF($C$4=Datos!$C$5,\"\",Datos!$E$11)","v":"VALOR"},"Diligencie el valor que se requiere, adicional al monto que se otorga de viáticos o desplazamientos y asegurese de solicitarlo solo en caso de ser necesario."]
["DILIGENCIAR SOLO EN CASO DE SOLICITUD DE CAMBIO"]
[{"$f":"+IF(OR($C$4=Datos!$C$12,$C$4=Datos!$C$16),\"\",Datos!$E$16)","v":"NUMERO DE TIQUETE"},"Diligencie el número de tiquete asignado inicialmente y que requiere cambiar."]
[{"$f":"+IF(OR($C$4=Datos!$C$12,$C$4=Datos!$C$16),\"\",Datos!$E$17)","v":"NUEVA RUTA(S), FECHA(S) Y RANGO(S) DE HORA DE VUELOS"},"Relacione de forma individual y ordenada la ruta, fecha, rango de hora que requiere, especificando si es a.m. o p.m., de cada uno de los vuelos que requiere cambiar para la ejecución de la comisión o desplazamiento."]
[{"$f":"+IF(OR($C$4=Datos!$C$12,$C$4=Datos!$C$16),\"\",Datos!$E$18)","v":"JUSTIFICACIÓN DEL CAMBIO"},"Exponga de forma clara y fundamentada porque se requiere el cambio de tiquete en una comisión de servicios o desplazamiento, con el fin de facilitar el proceso de aprobación y garantizar una gestión eficaz y transparente de los recursos destinados a actividades institucionales."]
["Nota: Se recomienda pegar el formato como plantilla en el cuerpo del correo, a efectos de no perder el archivo adjunto en una trazabilidad de correos."]

{"sheet":"Datos","index":2,"n_rows":19,"n_cols":8,"rows_kept":19,"cut":false,"hidden":true,"merged":[]}
[]
[null,null,null,"SOLICITUD CARGUE MÓDULO NARANJA"]
[null,null,"Tipo de Solicitud","SOLICITUD AMPLIACIÓN MÓDULO NARANJA","Celdas a bloquear",null,null,"TIPO VINCULACIÓN"]
[null,null,null,"SOLICITUD CAMBIO",null,null,null,"Funcionario"]
[null,null,"SOLICITUD CAMBIO",null,"RUTA COMPLETA","BLOQUEAR",null,"Contratista"]
[null,null,null,null,"REQUIERE VIATICOS","BLOQUEAR"]
[null,null,null,null,"REQUIERE TIQUETES","BLOQUEAR"]
[null,null,null,null,"REQUIERE GASTOS DE VIAJE","BLOQUEAR"]
[null,null,null,null,"CDP VIATICOS","BLOQUEAR"]
[null,null,null,null,"CDP TIQUETES","BLOQUEAR"]
[null,null,null,null,"VALOR","BLOQUEAR"]
[null,null,"SOLICITUD CARGUE MÓDULO NARANJA",null,"N/A","BLOQUEAR"]
[null,null,null,null,"NUMERO DE TIQUETE","BLOQUEAR"]
[null,null,null,null,"NUEVA RUTA(S), FECHA(S) Y RANGO(S) DE HORA DE VUELOS","BLOQUEAR"]
[null,null,null,null,"JUSTIFICACIÓN DEL CAMBIO","BLOQUEAR"]
[null,null,"SOLICITUD AMPLIACIÓN MÓDULO NARANJA",null,"NUMERO DE TIQUETE","BLOQUEAR"]
[null,null,null,null,"NUEVA RUTA(S), FECHA(S) Y RANGO(S) DE HORA DE VUELOS","BLOQUEAR"]
[null,null,null,null,"JUSTIFICACIÓN DEL CAMBIO","BLOQUEAR"]
[null,null,null,null,null,"BLOQUEAR"]

{"sheet":"Hoja2","index":3,"n_rows":0,"n_cols":0,"rows_kept":0,"cut":false,"hidden":true,"merged":[]}

{"sheet":"Hoja3","index":4,"n_rows":0,"n_cols":0,"rows_kept":0,"cut":false,"hidden":true,"merged":[]}